Cogmind - Beta 14 @@@ ROGUE MODE // 2024.08.27 @ 02:11:20 Player: Cereal Killer Result: Destroyed by Autobeam Turret with Autobeam Performance ------------- Evolutions (0) 0 Regions Visited (3) 600 Robots Destroyed (26) 130 Value Destroyed (808) 808 Prototype IDs (0) 0 Alien Tech Used (0) 0 Bonus (0) 0 TOTAL SCORE: 1538 Bonus ------- None Cogmind --------- Core Integrity 0/250 Matter 161/300 Energy 100/100 System Corruption 0% Temperature Cool (6) Movement Rolling (130) Ox2 Location -10/Subcaves Parts ------- > --- POWER (1) -------- Subdweller Power Source > --- PROPULSION (2) --- Subdweller Monowheel Subdweller Monowheel > --- UTILITY (2) ------ High-capacity Storage Unit Makeshift Thermal Plating > --- WEAPON (2) ------- Subdweller Beam Cannon Grenade Launcher > --- INVENTORY (20) --- Subdweller Power Source Subdweller Power Source Subdweller Monowheel Subdweller Monowheel Subdweller Monowheel Subdweller Monowheel Small Storage Unit Medium Storage Unit Medium Matter Pod (100) Medium Matter Pod (100) Subdweller Optics Subdweller Optics Subdweller Laser Subdweller Laser Subdweller Laser Assault Rifle Subdweller Machine Gun Subdweller Machine Gun Subdweller Shrapnel Launcher Flamer Peak State ------------ > --- POWER ------------ Subdweller Power Source > --- PROPULSION ------- Subdweller Monowheel Subdweller Monowheel > --- UTILITY ---------- High-capacity Storage Unit Makeshift Thermal Plating > --- WEAPON ----------- Subdweller Beam Cannon Subdweller Machine Gun > --- INVENTORY -------- Subdweller Power Source Subdweller Power Source Subdweller Monowheel Subdweller Monowheel Small Storage Unit Medium Storage Unit Medium Matter Pod Medium Matter Pod Subdweller Optics Subdweller Optics Subdweller Laser Subdweller Laser Subdweller Laser Assault Rifle Subdweller Machine Gun Grenade Launcher Subdweller Shrapnel Launcher Flamer [Rating: 18] Favorites ----------- Power Ion Engine Engine Ion Engine Propulsion Subdweller Monowheel Wheel Subdweller Monowheel Utility High-capacity Storage Unit Device Structural Scanner Storage High-capacity Storage Unit Protection Makeshift Thermal Plating Weapon Subdweller Beam Cannon Energy Cannon Subdweller Beam Cannon Ballistic Gun Assault Rifle Launcher Grenade Launcher Build | -11 -10 -10 -10 ------- Run | Yrd Mat Min Sub Slots Evolved . | . . . . Power . | . . . . Propulsion . | . . . . Utility . | . . . . Weapon . | . . . . Parts Attached 35 | 6 1 1 27 Power 5 | 1 . . 4 Engine 5 | 1 . . 4 Core . | . . . . Reactor . | . . . . Propulsion 11 | 2 . . 9 Treads . | . . . . Leg . | . . . . Wheel 11 | 2 . . 9 Hover . | . . . . Flight . | . . . . Utility 4 | 1 . . 3 Device 1 | . . . 1 Storage 2 | 1 . . 1 Processor . | . . . . Hackware . | . . . . Protection 1 | . . . 1 Artifact . | . . . . Weapon 15 | 2 1 1 11 Energy Gun . | . . . . Energy Cannon 4 | . . . 4 Ballistic Gun 6 | 2 1 . 3 Ballistic Cannon . | . . . . Launcher 5 | . . 1 4 Special Weapon . | . . . . Impact Weapon . | . . . . Slashing Weapon . | . . . . Piercing Weapon . | . . . . Special Melee Weapon . | . . . . Unidentified Prototypes . | . . . . Parts Lost 10 | . . . 10 Power 2 | . . . 2 Propulsion 4 | . . . 4 Utility 1 | . . . 1 Weapon 3 | . . . 3 Highest Loss Streak 4 | . . . 4 To Critical Strikes . | . . . . Average Slot Usage (%) 93 | . 85 85 93 Engine 13 | . 14 14 13 Wheel 26 | . 28 28 25 Device 5 | . . . 5 Storage 14 | . 14 14 14 Protection 4 | . . . 5 Energy Cannon 13 | . . . 14 Ballistic Gun 11 | . 28 26 9 Launcher 3 | . . 1 4 Peak Build Rating 18 | 6 6 6 18 Average Rating 12 | 3 6 6 13 On Entrance 4 | . 6 6 6 Naked Turns . | . . . . Heaviest Build 61 | 13 14 15 61 Greatest Support 40 | 20 20 20 40 Greatest Overweight (x) 19 | . . . 19 Average Overweight (x) 1 | . . . 1 Largest Inventory Capacity 20 | 8 8 8 20 Average Capacity 17 | 7 8 8 19 Most Carried 20 | 5 8 8 20 Average Carried 15 | 1 3 7 16 Final Capacity 20 | 8 8 8 20 Final Carried 20 | 2 8 8 20 Class Distribution -------------------- 90% | Mutant 9% | Scavenger-Mutant Dominant Class ---------------- Mutant | -10/Materials Mutant | -10/Mines Mutant | -10/Subcaves Resources | -11 -10 -10 -10 ----------- Run | Yrd Mat Min Sub Matter Collected 1084 | 195 117 148 624 Remotely . | . . . . Salvage Created 915 | . 185 98 632 Parts 60 | . 17 11 32 Haulers Intercepted 1 | . 1 . . Recyclers Shooed 1 | . . 1 . Parts Field Recycled . | . . . . Retrieved Matter . | . . . . Parts Self-Destructed 7 | . . . 7 Prevented . | . . . . Kills | -11 -10 -10 -10 ------- Run | Yrd Mat Min Sub Combat Hostiles Destroyed 21 | . 4 1 16 Guns 10 | . 4 1 5 Cannons 7 | . . . 7 AOE 4 | . . . 4 Classes Destroyed 8 | . 4 3 1 Worker 1 | . . 1 . Builder 1 | . . 1 . Tunneler 1 | . . 1 . Hauler 1 | . 1 . . Watcher 1 | . 1 . . Swarmer 2 | . 2 . . Grunt 7 | . 2 1 4 Subdweller 12 | . . . 12 Best Kill Streak 5 | . 5 2 3 Combat Bots Only 4 | . 4 1 3 Max Kills in Single Turn 1 | . 1 1 1 Gunslinging . | . . . . Exploded 1 | . . . 1 Melee . | . . . . Uniques/NPCs Destroyed . | . . . . Combat | -11 -10 -10 -10 -------- Run | Yrd Mat Min Sub Hostile Shots Fired 89 | . 12 4 73 Missed 30 | . 1 1 28 Damage Taken 1363 | . 96 52 1215 Core 253 | . 12 . 241 Absorbed by Shields . | . . . . Ignored by Resistances 2 | . . . 2 Core Remaining (%) 100 | 100 . . . Volleys Fired 104 | . 13 11 80 Largest 2 | . 2 2 2 Hottest 160 | . 40 40 160 Shots Fired 191 | . 26 19 146 Gun 105 | . 26 16 63 Cannon 66 | . . . 66 Launcher 20 | . . 3 17 Special . | . . . . Kinetic 108 | . 26 16 66 Thermal 66 | . . . 66 Explosive 17 | . . 3 14 Electromagnetic . | . . . . Robot Hit Streak 17 | . 5 6 17 Robot Miss Streak 3 | . 3 1 2 Penetration Max . | . . . . Secondary Targets 1 | . 1 . . Max Gunslinging Chain 1 | . 1 . . Shots Hit Robots 91 | . 15 12 64 Core Hits 41 | . 9 8 24 Critical Kills . | . . . . Critical Parts Destroyed 1 | . . 1 . Critical Strikes 1 | . . 1 . Destroy 1 | . . 1 . Melee Attacks . | . . . . Impact . | . . . . Slashing . | . . . . Piercing . | . . . . Sneak Attacks . | . . . . Combat Hostiles . | . . . . Follow-up Attacks . | . . . . Damage Inflicted 2059 | . 155 261 1643 Guns 767 | . 155 155 457 Cannons 815 | . . . 815 Explosions 477 | . . 106 371 Melee . | . . . . Ramming . | . . . . Kinetic 869 | . 155 155 559 Thermal 815 | . . . 815 Explosive 375 | . . 106 269 Electromagnetic . | . . . . Impact . | . . . . Slashing . | . . . . Piercing . | . . . . Highest Corruption . | . . . . Average Corruption . | . . . . Corruption Purged . | . . . . Corruption Blocked . | . . . . Overload Shots . | . . . . Overflow Damage 25 | . . . 25 Projectiles . | . . . . Explosions 25 | . . . 25 Melee . | . . . . Knockbacks . | . . . . Impact . | . . . . Kinetic . | . . . . Secondary . | . . . . Self-Inflicted Damage 50 | . . 6 44 Shots 4 | . . 1 3 Rammed . | . . . . Targets Rammed . | . . . . Kicked . | . . . . Crushed . | . . . . Highest Temperature 54 | . 6 2 54 Average Temperature 14 | . 6 2 19 Received Heat Transfer 201 | . 30 27 144 Siege Activations . | . . . . Robots Corrupted . | . . . . Combat Hostiles . | . . . . Parts Fried . | . . . . Impact Corruptions . | . . . . Robots Melted . | . . . . Combat Hostiles . | . . . . Parts Melted 2 | . . . 2 Heat Transferred 1110 | . . . 1110 Parts Sabotaged . | . . . . Parts Stolen . | . . . . Parts Stripped . | . . . . Power Chain Reactions . | . . . . Alert | -11 -10 -10 -10 ------- Run | Yrd Mat Min Sub Peak Influence 173 | . 148 173 . Initial 57 | . . 57 . Average 91 | . 102 105 . Maximum Alert Level . | . . . . Low Security (%) 100 | 100 100 100 . Level 1 . | . . . . Level 2 . | . . . . Level 3 . | . . . . Level 4 . | . . . . Level 5 . | . . . . High Security . | . . . . Max Security . | . . . . Squads Dispatched 1 | . 1 . . Investigation . | . . . . Extermination . | . . . . Reinforcement 1 | . 1 . . Assault . | . . . . Garrison . | . . . . Intercept . | . . . . Searches Triggered . | . . . . Construction Impeded . | . . . . Haulers Reinforced . | . . . . Active Scanning Responses . | . . . . Cargo Convoy Interrupts . | . . . . Stealth | -11 -10 -10 -10 --------- Run | Yrd Mat Min Sub Distress Signals . | . . . . Communications Jammed . | . . . . Distress Signals . | . . . . Times Spotted 29 | . 8 4 17 Peak Tracking Total 5 | . 5 2 3 Tactical Retreats 3 | . 1 2 . Traps | -11 -10 -10 -10 ------- Run | Yrd Mat Min Sub Traps Triggered 6 | . . . 6 Indirectly . | . . . . Trap Hack Attempts . | . . . . Triggered . | . . . . Disarmed . | . . . . Reprogrammed . | . . . . Reused . | . . . . Traps Extracted . | . . . . Installed . | . . . . Triggered . | . . . . Machines | -11 -10 -10 -10 ---------- Run | Yrd Mat Min Sub Machines Disabled . | . . . . Max in Single Turn . | . . . . Machines Repaired . | . . . . Machines Dismantled . | . . . . Machines Sabotaged . | . . . . Overloaded Fab Kills . | . . . . Hacking | -11 -10 -10 -10 --------- Run | Yrd Mat Min Sub Machines Accessed 3 | . 3 . . Terminals 3 | . 3 . . Fabricators . | . . . . Repair Stations . | . . . . Recycling Units . | . . . . Scanalyzers . | . . . . Garrison Access . | . . . . Total Hacks 9 | . 9 . . Successful 2 | . 2 . . Failed 6 | . 6 . . Catastrophic . | . . . . Database Lockouts 1 | . 1 . . Manual 3 | . 3 . . Terminals 9 | . 9 . . Fabricators . | . . . . Repair Stations . | . . . . Recycling Units . | . . . . Scanalyzers . | . . . . Garrison Access . | . . . . Terminal Hacks 2 | . 2 . . Robot Analysis 1 | . 1 . . Locate Traps 1 | . 1 . . Fabricator Hacks . | . . . . Repair Station Hacks . | . . . . Recycling Unit Hacks . | . . . . Scanalyzer . | . . . . Garrison Access Hacks . | . . . . Unauthorized Hacks . | . . . . Terminals . | . . . . Fabricators . | . . . . Repair Stations . | . . . . Recycling Units . | . . . . Scanalyzers . | . . . . Garrison Access . | . . . . Data Cores Recovered . | . . . . Used . | . . . . Hacking Detections 3 | . 3 . . Full Trace Events 1 | . 1 . . Feedback Events . | . . . . Feedback Blocked . | . . . . Robot Schematics Acquired . | . . . . Robots Built . | . . . . Authchips . | . . . . Time . | . . . . Total Robot Build Rating . | . . . . Part Schematics Acquired . | . . . . Parts Built . | . . . . Authchips . | . . . . Time . | . . . . Total Part Build Rating . | . . . . Parts Repaired . | . . . . Time . | . . . . Parts Recycled . | . . . . Recycled Matter . | . . . . Retrieved Matter . | . . . . Retrieved Components . | . . . . Parts Scanalyzed . | . . . . Part Schematics Acquired . | . . . . Parts Damaged . | . . . . Bothacking | -11 -10 -10 -10 ------------ Run | Yrd Mat Min Sub Used RIF Installer . | . . . . Robots Hacked . | . . . . Non-combat . | . . . . Combat . | . . . . Robot Hacks Applied . | . . . . Relay Couplers Released . | . . . . Fabnet Peak Effective % . | . . . . Robots Rewired . | . . . . Allies Hacked . | . . . . Hacks Repelled . | . . . . Allies | -11 -10 -10 -10 -------- Run | Yrd Mat Min Sub Total Allies . | . . . . Largest Group . | . . . . Highest-Rated Group . | . . . . Highest-Rated Ally . | . . . . Total Orders . | . . . . Ally Attacks . | . . . . Total Damage . | . . . . Kills . | . . . . Allies Corrupted . | . . . . Allies Melted . | . . . . Intel | -11 -10 -10 -10 ------- Run | Yrd Mat Min Sub Robot Analysis Total 1 | . 1 . . Derelict Logs Recovered 1 | . . . 1 Drone Launches . | . . . . Drone Recoveries . | . . . . Exploration | -11 -10 -10 -10 ------------- Run | Yrd Mat Min Sub Turns Passed 3084 | 39 176 121 2748 Spaces Moved 2062 | 33 162 106 1761 Core 58 | 5 . . 53 Treads . | . . . . Legs . | . . . . Wheels 2004 | 28 162 106 1708 Hover . | . . . . Flight . | . . . . Fastest Speed 50 | 50 80 80 80 Average Speed 128 | 75 80 80 136 Slowest Speed 1000 | 80 80 80 1000 Overloaded Moves . | . . . . Propulsion Burnouts . | . . . . Robots Hopped . | . . . . Cave-ins Triggered . | . . . . Exploration Rate (%) 37 | 4 35 26 84 Regions Visited 3 Branch Regions 2 Pre-discovered Areas 1 | . . . 1 Known Exits Taken . | . . . . Unknown Exits Taken 3 | 1 1 1 . Scrap Searched 9 | . . 2 7 Spaces Dug 10 | . . . 10 Terrain Destroyed 177 | . . 15 162 Melee . | . . . . Projectile 5 | . . . 5 AOE 172 | . . 15 157 Terrain Rammed . | . . . . Walls Destroyed . | . . . . Machines Disabled . | . . . . Actions | -11 -10 -10 -10 --------- Run | Yrd Mat Min Sub Total 2304 | 46 184 123 1951 Wait 53 | . 3 2 48 Move 2059 | 32 161 105 1761 Hop . | . . . . Pick Up 43 | 8 6 2 27 Fast Attach 2 | . . . 2 Attach 17 | 6 . . 11 Detach 1 | . . . 1 Swap 16 | . 1 1 14 Drop 9 | . . 2 7 Fire 104 | . 13 11 80 Melee . | . . . . Ram . | . . . . Kick . | . . . . Crush . | . . . . Escape Stasis . | . . . . Rewire . | . . . . Trap . | . . . . Miscellaneous . | . . . . Route ------- -11/Scrapyard -10/Materials -10/Mines (discovered 2 exits: [*Mat] / [*Sub]) -10/Subcaves (discovered 1 exit: [*Mat]) History --------- Turn | Location | Event 22 | -11/Scrapyard | Discovered new exit (range 15) 40 | -11/Scrapyard | Entered Materials 149 | -10/Materials | Central database locked down 167 | -10/Materials | Discovered new exit (range 8) 216 | -10/Materials | Entered Mines 218 | -10/Mines | YI-UF0 nonchalantly dropped a Grenade Launcher on the ground 265 | -10/Mines | Discovered new exit (range 6) 329 | -10/Mines | Discovered new exit (range 10) 337 | -10/Mines | Entered Subcaves 343 | -10/Subcaves | Build established: Mutant 428 | -10/Subcaves | A swath of the cavern ceiling suddenly collapsed 449 | -10/Subcaves | Learned location of Zion (-7) 618 | -10/Subcaves | Discovered new exit (range 8) 839 | -10/Subcaves | Shifting Twisted Machinery released Piercing Trap 839 | -10/Subcaves | Shifting Twisted Machinery released Sub. Laser 1403 | -10/Subcaves | Ambushed by Subdweller buried in earth 1571 | -10/Subcaves | Disturbed a concealed Subdweller 1752 | -10/Subcaves | Core integrity fell below 50% 1831 | -10/Subcaves | Core integrity fell below 20% 1855 | -10/Subcaves | Lost 4 parts (1p2n1w) 2131 | -10/Subcaves | Shifting Twisted Machinery released Flamer 2172 | -10/Subcaves | Shifting Twisted Machinery released Sub. Machine Gun 2198 | -10/Subcaves | A swath of the cavern ceiling suddenly collapsed 2309 | -10/Subcaves | Build established: Scavenger-Mutant 2366 | -10/Subcaves | Ambushed by Subdweller buried in earth 2609 | -10/Subcaves | Build established: Mutant 2700 | -10/Subcaves | Curiously followed by a Cobbler waking with a query about "LVR3C" 2706 | -10/Subcaves | Shifting Twisted Machinery released Battle Rifle 2716 | -10/Subcaves | Shifting Twisted Machinery released Battle Rifle 3085 | -10/Subcaves | Destroyed by Autobeam Turret with Autobeam Last Messages --------------- The unstable cave ceiling collapses. Sub. Monowheel shoots sparks and powers down. Sub. Power Source shoots sparks and powers down. Sub. Monowheel shoots sparks and powers down. Acquired 5 matter. Acquired 6 matter. Acquired 12 matter. Acquired 5 matter. J6-E43(O) wakes at your presence. J6-E43(O): "LVR3C?" Battle Rifle falls loose from the Twisted Machinery. J6-E43(O) collects matter. J6-E43(O) puts together Sub. Monowheel. J6-E43(O) collects matter. J6-E43(O) puts together Sub. Monowheel. J6-E43(O) collects matter. Acquired Sub. Monowheel. J6-E43(O) puts together Riot Gun. J6-E43(O) collects matter. Map ----- +----------------------------------------------------+ | ?????????????????????????????????????????????????? | | ?????????????????????????????????????????????????? | | ??????????????????????????????????###????????????? | | ??????????????????????????######### ##???????????? | | ???????????????????#### ### # #?###???????? | | ??????????????????# ### ##??????? | | ?????????????????? ##?????? | | ??????????????????# # ####### | | ??????????????????? ####??### ## "[ # | | ????????????????????????###??# ### | | ???????????????????????## #?# ##### ["" | | ?????????????????????### ?# # ### " ## | | ?????????????????????# ?## """### ""###? | | ?????????????????????? #### ## " %## ###??? | | ?????????????????????????# #### #?" % ###????? | | ?????????????????????????# ### #?????? | | ????????????????????????## """"??????? | | ????????????????????????# """"""""??????? | | ????????????????????????## "[ ###"??????? | | ?????????????????????????# ## " ###?????????? | | ?????????????????????????## ## " #???????????? | | ??????????????????????????# # "##???????????? | | ??????????????????????????# O ##????????????? | | ?????????????????????????## ## ##?????????????? | | ????????????????????????## #?????????????? | | ????????????????????????#@ ##?????????????? | | ???????????????????????# # #?????????????? | | ??????????????????????# ## ####?????????????? | | ??????????????????????# #?##????????????????? | | ??????????????????????## #???????????????????? | | ???????????????????????# #???????????????????? | | ???????????????????????# #???????????????????? | | ???????????????????????### #???????????????????? | | ?????????????????????????# #???????????????????? | | ?????????????????????????# #???????????????????? | | ?????????????????????????# #???????????????????? | | ?????????????????????????? #???????????????????? | | ?????????????????????????? #???????????????????? | | ?????????????????????????? #???????????????????? | | ?????????????????????????? ???????????????????? | | ??????????????????????????? ?????????????????????? | | ?????????????????????????????????????????????????? | | ?????????????????????????????????????????????????? | | ?????????????????????????????????????????????????# | | ?????????????????????????????????????????????????# | | ?????????????????????????????????????????????????# | | ?????????????????????????????????????????????????# | | ?????????????????????????????????????????????????# | | ?????????????????????????????????????????????????# | | ?????????????????????????????????????????????????# | +----------------------------------------------------+ Best States ------------- Heat Dissipation 25 Energy Generation 15 Energy Capacity 250 Matter Stores 300 Matter Capacity 300 Sight Range 16 Terrain Scan Density 10 Armor Coverage 100 Resistance: TH 10 Evasion (%) 44 Item Schematics ----------------- None Robot Schematics ------------------ None Fabricated ------------ Nothing Alien Tech Used ----------------- None Achievements -------------- None Challenges ------------ None Game ------ Seed SapperGravmagBotcube Manual? 0 Play Time 00:24:26 Cumulative 176.6 hours Start 2024.08.27 @ 01:51:18 End 2024.08.27 @ 02:11:20 Sessions 1 Manual Loads 0 Difficulty Rogue Special Mode None Game No. 155 Rogue 146 Adventurer 9 Explorer 0 Win Type - Total 0 Types 0/0/0/0/0/0/0/0/0 Lore% 67 Gallery% 68 Achievement% 54 Wizard Run 0 Options --------- Layout 1 ASCII 0 Keyboard 0 Movement Numpad Keybinds 0 Fullscreen 1 Font 24/Smallcaps Map View 50x35 Zoom Use 0% Tactical HUD 0 Map Filters NONE Filters NONE Steam 1 RUN: a49b907f-69fa-4ba3-8c49-3c5ad2f1af39